Cogmind - Beta 15 @@@ ROGUE MODE // 2025.06.27 @ 15:23:44 Player: Evie Result: Destroyed by S-10 Pest with Light Assault Rifle Performance ------------- Evolutions (0) 0 Regions Visited (1) 200 Robots Destroyed (11) 55 Value Destroyed (165) 165 Prototype IDs (0) 0 Alien Tech Used (0) 0 Bonus (0) 0 TOTAL SCORE: 420 Bonus ------- None Cogmind --------- Core Integrity 0/250 Matter 300/300 Energy 100/100 System Corruption 0% Temperature Cool (0) Movement Core (50) Location -10/Materials Parts ------- > --- POWER (1) -------- (None) > --- PROPULSION (2) --- (None) > --- UTILITY (2) ------ (None) > --- WEAPON (2) ------- (None) > --- INVENTORY (5) ---- Light Ion Engine Wheel Wheel Terrain Scanner Assault Rifle Peak State ------------ > --- POWER ------------ Light Ion Engine > --- PROPULSION ------- Aluminum Leg Aluminum Leg > --- UTILITY ---------- (None) > --- WEAPON ----------- EM Pulse Gun Medium Laser > --- INVENTORY -------- Wheel Wheel Assault Rifle [Rating: 5] Favorites ----------- Power Light Ion Engine Engine Light Ion Engine Propulsion Aluminum Leg Leg Aluminum Leg Utility None Weapon Assault Rifle Energy Gun EM Pulse Gun Ballistic Gun Assault Rifle Build | -11 -10 ------- Run | Yrd Mat Slots Evolved . | . . Power . | . . Propulsion . | . . Utility . | . . Weapon . | . . Parts Attached 7 | 6 1 Power 1 | 1 . Engine 1 | 1 . Core . | . . Reactor . | . . Propulsion 2 | 2 . Treads . | . . Leg 2 | 2 . Wheel . | . . Hover . | . . Flight . | . . Utility . | . . Device . | . . Storage . | . . Processor . | . . Hackware . | . . Protection . | . . Artifact . | . . Weapon 4 | 3 1 Energy Gun 2 | 2 . Energy Cannon . | . . Ballistic Gun 2 | 1 1 Ballistic Cannon . | . . Launcher . | . . Special Weapon . | . . Impact Weapon . | . . Slashing Weapon . | . . Piercing Weapon . | . . Special Melee Weapon . | . . Unidentified Prototypes . | . . Parts Lost 6 | . 6 Power 1 | . 1 Propulsion 2 | . 2 Utility . | . . Weapon 3 | . 3 Highest Loss Streak 5 | . 5 To Critical Strikes . | . . Average Backups 3 | 3 3 Power . | . 1 Propulsion 1 | 1 2 Utility . | . . Weapon . | . . Tool/Special . | . . Unused Backups 4 | . 4 Power 1 | . 1 Propulsion 2 | . 2 Utility 1 | . 1 Weapon . | . . Tool/Special . | . . Average Slot Usage (%) 63 | . 63 Engine 12 | . 12 Leg 25 | . 25 Energy Gun 12 | . 12 Ballistic Gun 12 | . 12 Peak Build Rating 5 | 5 5 Average Rating 4 | 4 4 On Entrance 2 | . 5 Naked Turns 21 | . 21 Heaviest Build 7 | 7 7 Greatest Support 20 | 20 20 Greatest Overweight (x) . | . . Average Overweight (x) . | . . Largest Inventory Capacity 5 | 5 5 Average Capacity 5 | 5 5 Most Carried 5 | 5 5 Average Carried 3 | 3 3 Final Capacity 5 | 5 5 Final Carried 5 | 4 5 Class Distribution -------------------- 100% | Mutant Dominant Class ---------------- Mutant | -10/Materials Resources | -11 -10 ----------- Run | Yrd Mat Matter Collected 416 | 260 156 Remotely . | . . Salvage Created 399 | 66 333 Parts 18 | 2 16 Haulers Intercepted . | . . Recyclers Shooed 3 | . 3 Parts Field Recycled . | . . Retrieved Matter . | . . Parts Self-Destructed . | . . Prevented . | . . Kills | -11 -10 ------- Run | Yrd Mat Combat Hostiles Destroyed 6 | 1 5 Guns 4 | . 4 AOE 2 | 1 1 Classes Destroyed 5 | 2 3 Worker 1 | 1 . Builder 2 | . 2 Recycler 2 | . 2 Swarmer 3 | . 3 Grunt 3 | 1 2 Best Kill Streak 6 | 1 6 Combat Bots Only 4 | 1 4 Max Kills in Single Turn 1 | 1 1 Gunslinging . | . . Exploded 1 | 1 1 Melee . | . . Uniques/NPCs Destroyed . | . . Combat | -11 -10 -------- Run | Yrd Mat Hostile Shots Fired 121 | 2 119 Missed 30 | 1 29 Hits 91 | 1 90 Projectile 91 | 1 90 Critical Strikes 1 | . 1 Damage Taken 749 | 11 738 Core 255 | . 255 Absorbed by Shields . | . . Core Remaining (%) 100 | 100 . Volleys Fired 85 | 3 82 Largest 2 | 2 2 Hottest 90 | 90 70 Shots Fired 135 | 6 129 Gun 135 | 6 129 Cannon . | . . Launcher . | . . Special . | . . Kinetic 64 | . 64 Thermal 63 | 3 60 Explosive . | . . Electromagnetic 8 | 3 5 Robot Hit Streak 7 | 1 7 Robot Miss Streak 5 | . 5 Penetration Max . | . . Secondary Targets 2 | . 2 Max Gunslinging Chain 1 | . 1 Shots Hit Robots 42 | 1 41 Core Hits 17 | 2 15 Critical Kills . | . . Critical Parts Destroyed . | . . Critical Strikes 3 | . 3 Burn 3 | . 3 Melee Attacks . | . . Impact . | . . Slashing . | . . Piercing . | . . Sneak Attacks . | . . Combat Hostiles . | . . Follow-up Attacks . | . . Damage Inflicted 663 | 66 597 Guns 556 | 28 528 Cannons . | . . Explosions 107 | 38 69 Melee . | . . Ramming . | . . Kinetic 205 | . 205 Thermal 409 | 38 371 Explosive . | . . Electromagnetic 49 | 28 21 Impact . | . . Slashing . | . . Piercing . | . . Highest Corruption . | . . Average Corruption . | . . Corruption Purged . | . . Corruption Blocked . | . . Overload Shots . | . . Overflow Damage . | . . Projectiles . | . . Explosions . | . . Melee . | . . Knockbacks . | . . Impact . | . . Kinetic . | . . Secondary . | . . Self-Inflicted Damage . | . . Shots . | . . Rammed . | . . Targets Rammed . | . . Kicked . | . . Crushed . | . . Highest Temperature 409 | 60 409 Average Temperature 192 | 27 204 Received Heat Transfer 54 | 6 48 Effects 7 | . 7 Shutdowns 3 | . 3 Interference 3 | . 3 Short Circuit 1 | . 1 Siege Activations . | . . Martial Activations . | . . Shielding Activations . | . . Robots Disrupted . | . . Combat Hostiles . | . . Robots Corrupted . | . . Combat Hostiles . | . . Parts Fried . | . . Impact Corruptions . | . . Robots Melted . | . . Combat Hostiles . | . . Parts Melted 3 | . 3 Heat Transferred 1260 | 50 1210 Parts Sabotaged . | . . Parts Stolen . | . . Parts Stripped . | . . Power Chain Reactions 2 | 1 1 Alert | -11 -10 ------- Run | Yrd Mat Maximum Alert Level . | . . Low Security (%) 100 | 100 100 Level 1 . | . . Level 2 . | . . Level 3 . | . . Level 4 . | . . Level 5 . | . . High Security . | . . Max Security . | . . Peak Influence 90 | 20 90 Initial . | . . Average 6 | . 54 Influence Increases 201 | 25 176 Destroy 0b10 Robot/C 120 | 20 100 Destroy 0b10 Robot/NC 25 | 5 20 Destroy Leader 30 | . 30 Successful Hack 4 | . 4 Disable Machine 15 | . 15 Destroy Structure 7 | . 7 Influence Decreases 201 | 25 176 Time Decay 155 | 25 130 Lost Part 46 | . 46 Squads Dispatched 2 | . 2 Investigation 1 | . 1 Extermination . | . . Reinforcement 1 | . 1 Assault . | . . Garrison . | . . Intercept . | . . Searches Triggered . | . . Construction Impeded . | . . Haulers Reinforced . | . . Active Scanning Responses . | . . Cargo Convoy Interrupts . | . . Stealth | -11 -10 --------- Run | Yrd Mat Distress Signals . | . . Communications Jammed . | . . Distress Signals . | . . Times Spotted 15 | 1 14 Peak Tracking Total 5 | 1 5 Tactical Retreats . | . . Traps | -11 -10 ------- Run | Yrd Mat Traps Triggered 1 | . 1 Indirectly . | . . Trap Hack Attempts . | . . Triggered . | . . Disarmed . | . . Reprogrammed . | . . Reused . | . . Traps Extracted . | . . Installed . | . . Triggered . | . . Machines | -11 -10 ---------- Run | Yrd Mat Machines Disabled 1 | . 1 Max in Single Turn 1 | . 1 Machines Repaired . | . . Machines Dismantled . | . . Machines Sabotaged . | . . Overloaded Fab Kills . | . . Hacking | -11 -10 --------- Run | Yrd Mat Machines Accessed 2 | . 2 Terminals 2 | . 2 Fabricators . | . . Repair Stations . | . . Recycling Units . | . . Scanalyzers . | . . Garrison Access . | . . Total Hacks 10 | . 10 Successful 5 | . 5 Failed 5 | . 5 Catastrophic . | . . Database Lockouts . | . . Manual . | . . Terminals 10 | . 10 Fabricators . | . . Repair Stations . | . . Recycling Units . | . . Scanalyzers . | . . Garrison Access . | . . Terminal Hacks 5 | . 5 Record 1 | . 1 Emergency Access Points 2 | . 2 Alert Level 1 | . 1 Maintenance Status 1 | . 1 Fabricator Hacks . | . . Repair Station Hacks . | . . Recycling Unit Hacks . | . . Scanalyzer . | . . Garrison Access Hacks . | . . Unauthorized Hacks . | . . Terminals . | . . Fabricators . | . . Repair Stations . | . . Recycling Units . | . . Scanalyzers . | . . Garrison Access . | . . Data Cores Recovered . | . . Used . | . . Hacking Detections 2 | . 2 Full Trace Events . | . . Feedback Events . | . . Feedback Blocked . | . . Robot Schematics Acquired . | . . Robots Built . | . . Authchips . | . . Time . | . . Total Robot Build Rating . | . . Part Schematics Acquired . | . . Parts Built . | . . Authchips . | . . Time . | . . Total Part Build Rating . | . . Parts Repaired . | . . Time . | . . Parts Recycled . | . . Recycled Matter . | . . Retrieved Matter . | . . Retrieved Components . | . . Parts Scanalyzed . | . . Part Schematics Acquired . | . . Parts Damaged . | . . Bothacking | -11 -10 ------------ Run | Yrd Mat Used RIF Installer . | . . Robots Hacked . | . . Non-combat . | . . Combat . | . . Robot Hacks Applied . | . . Relay Couplers Released . | . . Fabnet Peak Effective % . | . . Robots Rewired . | . . Allies Hacked . | . . Hacks Repelled . | . . Allies | -11 -10 -------- Run | Yrd Mat Total Allies . | . . Largest Group . | . . Highest-Rated Group . | . . Highest-Rated Ally . | . . Total Orders . | . . Ally Attacks . | . . Total Damage . | . . Kills . | . . Allies Corrupted . | . . Allies Melted . | . . Intel | -11 -10 ------- Run | Yrd Mat Active Infowar (turns) . | . . Robot Analysis Total . | . . Derelict Logs Recovered . | . . Drone Launches . | . . Drone Recoveries . | . . Exploration | -11 -10 ------------- Run | Yrd Mat Turns Passed 2721 | 2410 311 Spaces Moved 852 | 792 60 Core 19 | 17 2 Treads . | . . Legs 833 | 775 58 Wheels . | . . Hover . | . . Flight . | . . Fastest Speed 50 | 50 50 Average Speed 118 | 118 117 Slowest Speed 120 | 120 120 Overloaded Moves . | . . Propulsion Burnouts . | . . Robots Hopped . | . . Potential Cave-ins . | . . Cave-ins Triggered . | . . Exploration Rate (%) 34 | 48 20 Regions Visited 1 Branch Regions . Pre-discovered Areas . | . . Known Exits Taken . | . . Unknown Exits Taken 1 | 1 . Scrap Searched . | . . Spaces Dug . | . . Terrain Destroyed . | . . Melee . | . . Projectile . | . . AOE . | . . Terrain Rammed . | . . Walls Destroyed . | . . Machines Disabled . | . . Actions | -11 -10 --------- Run | Yrd Mat Total 2432 | 2257 175 Wait 1477 | 1448 29 Move 851 | 791 60 Hop . | . . Pick Up 11 | 9 2 Fast Attach . | . . Attach 6 | 5 1 Detach . | . . Swap 2 | 1 1 Drop . | . . Fire 85 | 3 82 Melee . | . . Ram . | . . Kick . | . . Crush . | . . Escape Stasis . | . . Rewire . | . . Trap . | . . Miscellaneous . | . . Route ------- -11/Scrapyard -10/Materials History --------- Turn | Location | Event 2 | -11/Scrapyard | Met Revision 17 80 | -11/Scrapyard | Discovered new exit (range 8) 2411 | -11/Scrapyard | Entered Materials 2412 | -10/Materials | Build established: Mutant 2703 | -10/Materials | Core integrity fell below 50% 2716 | -10/Materials | Core integrity fell below 20% 2722 | -10/Materials | Destroyed by S-10 Pest with Light Assault Rifle Last Messages --------------- R-06 Scavenger collects Wheel. Acquired 69 matter. K-01 Serf collects debris. R-06 Scavenger collects Lgt. Ion Engine. Acquired 43 matter. K-01 Serf collects debris. K-01 Serf cleans the Pressure Siphon. K-01 Serf collects debris. Lgt. Ion Engine destroyed. Aluminum Leg destroyed. Lgt. Assault Rifle destroyed. Med. Laser destroyed. Broken Aluminum Leg destroyed. M-13 Machinist repairs S-10 Pest Flight Unit. S-10 Pest suffers critical hit (Destroy). S-10 Pest destroyed. M-13 Machinist repairs S-10 Pest Lgt. Ion Engine. K-01 Serf collects debris. Map ----- +----------------------------------------------------+ | ??????????????????????????????????????# #??? | | ?????????????????????????????????????## ##?? | | ??????????????????????????????######## ### | | ????????????????????????????### | | ????????????????????????????+ T | | ????????????????????????????### | | ????????????#???????????"?????# #### ### | | ???????????## ????????? ?????# T#?#######?? | | ???????????# #######+###??# =##?????????? | | ???????????# #??# !%#??????????? | | ???????????# T #??# #+########???? | | ???????????# #??# #* | #???? | | ???????????# ####### #??# # % #???? | | ???????????####?######## #### # #???? | | ????????????????# + # " %% #???? | | ????????????????+ """# %+ " " #???? | | ????????????????# "??# # """ " #???? | | ????????????????# ????# ####+#+# """ T #???? | | ???????????????????????# #?? ?# """ " #???? | | ???????????????????????#k#? ?# #???? | | ????????????????????#+## ## ?##########???? | | ????????????????????# ## ??###?????????? | | ????????????????????# s ## + +????????? | | ???????????# ###### + #????????????? | | ???????????#^ ^ s ## #????????????? | | ???????????# @ #######?????????????? | | ???????????# = r u#???????????????????? | | ???????????# """*%""" #???????????????????? | | ???????????# """ =""" m#???????????????????? | | ?????????????? """ """ #???????????????????? | | ?????????????? """ """ +???????????????????? | | ?????????????? # ??????????????????? | | ?????????????? # ?????????????????? | | ?????????????? #####??####? "????????????????? | | ????????????? ????????????? ???????????????? | | ?????????????????????????????#???????????????? | | ?????????????????????????????????????????????? | | ?????????????????????????????????????????????? | | ?????????????????????????????????????????????? | | ?????????????????????????????????????????????? | | ?????????????????????????????????????????????? | | ?????????????????????????????????????????????? | | ?????????????????????????????????????????????? | | ?????????????????????????????????????????????? | | ?????????????????????????????????????????????? | | ?????????????????????????????????????????????? | | ?????????????????????????????????????????????? | | ?????????????????????????????????????????????? | | ?????????????????????????????????????????????? | | ?????????????????????????????????????????????? | +----------------------------------------------------+ Best States ------------- Heat Dissipation 25 Energy Generation 10 Energy Capacity 125 Matter Stores 300 Matter Capacity 300 Sight Range 16 Terrain Scan Density 10 Evasion (%) 55 Item Schematics ----------------- None Robot Schematics ------------------ None Fabricated ------------ Nothing Repaired ---------- Nothing Alien Tech Used ----------------- None Achievements -------------- Storm Trooper Uninvited Guest Challenges ------------ None Game ------ Seed CooledDynamicRouter Manual? 0 Play Time 00:09:18 Cumulative 0.7 hours Start 2025.06.27 @ 15:11:53 End 2025.06.27 @ 15:23:44 Sessions 1 Manual Loads 0 Difficulty Rogue Special Mode None Game No. 2 Rogue 2 Adventurer 0 Explorer 0 Win Type - Total 0 Types 0/0/0/0/0/0/0/0/0/0 Lore% 0 Gallery% 1 Achievement% 2 Wizard Run 0 Options --------- Layout 1 ASCII 0 Keyboard 0 Movement Mouse Keybinds 0 Fullscreen 1 Font 32/Smallcaps Map View 50x35 Zoom Use 0% Tactical HUD 0 Map Filters NONE Filters NONE Steam 1 RUN: 73ac8c0b-aabc-4b8f-86cf-310a52f8b80e